[Event "HUN-ch Rapid 2018"]
[Site "Ajka"]
[Date "2018.07.20"]
[Round "3"]
[White "Banusz, Tamas"]
[Black "Kiss, Pal"]
[Result "1-0"]
[ECO "A06"]
[WhiteElo "2592"]
[BlackElo "2356"]
[Annotator "RC"]
[PlyCount "157"]
[EventDate "2018.07.20"]
[EventType "swiss"]
[EventCountry "HUN"]
[SourceTitle "playchess.com"]
[Source "ChessBase"]
[SourceQuality "1"]
[TimeControl "1200+5"]

1. Nf3 {[%emt 0:00:04]} d5 {[%emt 0:00:02]} 2. g3 {[%emt 0:00:02]} Nf6 {[%emt 0:00:04]} 3. Bg2 {[%emt 0:00:01]} c6 {[%emt 0:00:02]} 4. c4 {[%emt 0:00:02]} Bg4 {[%emt 0:00:07]} 5. Ne5 {[%emt 0:00:01]} Be6 {[%emt 0:00:03]} 6. cxd5 {[%emt 0:00:02]} Bxd5 {[%emt 0:00:02]} 7. Nf3 {[%emt 0:00:02]} c5 {[%emt 0:00:02]} 8. Nc3 {[%emt 0:00:06]} Bc6 {[%emt 0:00:03]} 9. O-O {[%emt 0:00:03]} e6 {[%emt 0:00:11]} 10. Qc2 {[%emt 0:00:05]} Be7 {[%emt 0:00:24]} 11. Rd1 {[%emt 0:00:11]} O-O {[%emt 0:02:38]} 12. e4 {[%emt 0:00:17]} Qb6 {[%emt 0:00:58]} 13. d4 {[%emt 0:01:46]} Rd8 {[%emt 0:01:09]} 14. e5 {[%emt 0:00:34]} Nd5 {[%emt 0:00:16]} 15. Ng5 {[%emt 0:01:43]} g6 {[%emt 0:01:19]} 16. Nxd5 {[%emt 0:01:47]} Bxd5 {[%emt 0:00:24]} 17. dxc5 {[%emt 0:00:20]} Qxc5 {[%emt 0:01:26]} 18. Qxc5 {[%emt 0:01:01]} Bxc5 {[%emt 0:00:02]} 19. Bxd5 {[%emt 0:01:44]} Rxd5 {[%emt 0:00:30]} 20. Rxd5 {[%emt 0:00:01]} exd5 {[%emt 0:00:02]} 21. Bf4 {[%emt 0:00:01]} h6 {[%emt 0:01:33]} 22. Nf3 {[%emt 0:00:23]} g5 {[%emt 0:00:12]} 23. Rc1 {[%emt 0:02:12]} Nd7 {[%emt 0:02:05]} 24. Bd2 {[%emt 0:00:02]} Re8 {[%emt 0:01:38]} 25. h3 {[%emt 0:00:03]} Bb6 {[%emt 0:00:39]} 26. Bc3 {[%emt 0:00:24]} Nc5 {[%emt 0:00:42]} 27. Rd1 {[%emt 0:01:17]} Na4 {[%emt 0:01:16]} 28. Rxd5 {[%emt 0:00:53]} Nxc3 {[%emt 0:00:04]} 29. bxc3 {[%emt 0:00:01]} Rc8 {[%emt 0:00:18]} 30. Rd3 {[%emt 0:02:28]} Ba5 {[%emt 0:00:24]} 31. Kg2 {[%emt 0:01:58]} Rxc3 {[%emt 0:00:17]} 32. Rd6 {[%emt 0:00:17]} Bb6 {[%emt 0:00:44]} 33. Nd2 {[%emt 0:00:06]} Rc2 {[%emt 0:00:37]} 34. Ne4 {[%emt 0:00:02]} Kg7 {[%emt 0:00:28]} 35. Kf3 {[%emt 0:01:01]} Rxa2 {[%emt 0:00:28]} 36. Kg4 {[%emt 0:00:01]} Bc7 {[%emt 0:00:22]} 37. Rd7 {[%emt 0:01:07]} Bxe5 {[%emt 0:00:09]} 38. Rxb7 {[%emt 0:00:01]} Kg6 {[%emt 0:00:22]} 39. Kf3 {[%emt 0:00:11]} Ra3+ {[%emt 0:00:05]} 40. Kg2 {[%emt 0:00:01]} Ra2 {[%emt 0:00:12]} 41. Rb5 {[%emt 0:00:21]} Bd4 {[%emt 0:00:16]} 42. g4 {[%emt 0:00:01]} Bb6 {[%emt 0:00:07]} 43. Rd5 {[%emt 0:00:02]} Ra4 {[%emt 0:00:07]} 44. Rd6+ {[%emt 0:00:02]} Kg7 {[%emt 0:00:18]} 45. Ng3 {[%emt 0:00:07]} Kf8 {[%emt 0:00:05]} 46. Rxh6 {[%emt 0:00:09]} Rf4 {[%emt 0:00:25]} 47. f3 {[%emt 0:00:12]} Ra4 {[%emt 0:00:04]} 48. Ne4 {[%emt 0:00:01]} Be3 {[%emt 0:00:03]} 49. Rf6 {[%emt 0:00:09]} Ra2+ 50. Kf1 Ke7 {[%emt 0:00:06]} 51. Rf5 {[%emt 0:00:02]} a5 {[%emt 0:00:08]} 52. Nc3 {[%emt 0:00:03]} Ra1+ {[%emt 0:00:06]} 53. Ke2 {[%emt 0:00:01]} Bf4 {[%emt 0:00:13]} 54. Nd5+ {[%emt 0:00:01]} Ke6 {[%emt 0:00:00]} 55. Nxf4+ {[%emt 0:00:04]} gxf4 {[%emt 0:00:01]} 56. Rxf4 {[%emt 0:00:01]} Rh1 {[%emt 0:00:03]} 57. Ra4 Rxh3 {[%emt 0:00:03]} 58. Rxa5 {[%emt 0:00:12]} Rh1 {[%emt 0:00:03]} 59. Ke3 {[%emt 0:00:01]} Kf6 {[%emt 0:00:01]} 60. Kf4 {[%emt 0:00:05]} Rb1 {[%emt 0:00:07]} 61. Ra6+ {[%emt 0:00:03]} Kg7 {[%emt 0:00:01]} 62. g5 {[%emt 0:00:01]} Rb5 {[%emt 0:00:02]} 63. Kg4 {[%emt 0:00:01]} Rb4+ {[%emt 0:00:20]} 64. f4 {[%emt 0:00:01]} Rb1 {[%emt 0:00:01]} 65. Ra7 {[%emt 0:00:09]} Rb2 {[%emt 0:00:05]} 66. Ra8 {[%emt 0:00:24]} Rb1 {[%emt 0:00:03]} 67. Rc8 {[%emt 0:00:03]} Rb2 {[%emt 0:00:02]} 68. f5 {[%emt 0:00:38]} Rg2+ {[%emt 0:00:14]} 69. Kf4 {[%emt 0:00:00]} Rf2+ {[%emt 0:00:06]} 70. Ke4 {[%emt 0:00:01]} Rg2 {[%emt 0:00:08]} 71. f6+ {[%emt 0:00:08]} Kh7 {[%emt 0:00:04]} 72. Kf4 {[%emt 0:00:05]} Rg1 {[%emt 0:00:09]} 73. Rf8 {[%emt 0:00:02]} Rf1+ {[%emt 0:00:03]} 74. Ke5 {[%emt 0:00:09]} Re1+ {[%emt 0:00:03]} 75. Kd6 {[%emt 0:00:16]} Kg6 {[%emt 0:00:10]} 76. Rg8+ {[%emt 0:00:01]} Kf5 {[%emt 0:00:01]} 77. Rg7 {[%emt 0:00:02]} Re2 {[%emt 0:00:10]} 78. Kd7 {[%emt 0:00:10]} Rg2 {[%emt 0:00:06]} 79. Ke7 {[%emt 0:00:03]} 1-0

[Event "HUN-ch Rapid 2018"]
[Site "Ajka"]
[Date "2018.07.20"]
[Round "3"]
[White "Galyas, Miklos"]
[Black "Marton, Jozsef"]
[Result "1-0"]
[ECO "D00"]
[WhiteElo "2382"]
[BlackElo "2088"]
[Annotator "NA"]
[PlyCount "57"]
[EventDate "2018.07.20"]
[EventType "swiss"]
[EventCountry "HUN"]
[SourceTitle "playchess.com"]
[Source "ChessBase"]
[SourceQuality "1"]
[TimeControl "1200+5"]

1. d4 {[%emt 0:00:06]} d5 {[%emt 0:00:02]} 2. Bf4 {[%emt 0:00:02]} Nf6 {[%emt 0:00:07]} 3. e3 {[%emt 0:00:01]} e6 {[%emt 0:00:10]} 4. Nd2 {[%emt 0:00:04]} Be7 {[%emt 0:00:13]} 5. Bd3 {[%emt 0:00:06]} c5 {[%emt 0:00:02]} 6. c3 {[%emt 0:00:02]} Nc6 {[%emt 0:00:01]} 7. Ngf3 {[%emt 0:00:04]} O-O {[%emt 0:00:41]} 8. Ne5 {[%emt 0:00:15]} Nxe5 {[%emt 0:00:29]} 9. dxe5 {[%emt 0:00:02]} Nd7 {[%emt 0:00:01]} 10. h4 {[%emt 0:00:30]} f5 {[%emt 0:00:33]} 11. g4 {[%emt 0:00:09]} c4 {[%emt 0:00:42]} 12. Bc2 {[%emt 0:00:06]} Nc5 {[%emt 0:00:15]} 13. gxf5 {[%emt 0:00:05]} exf5 {[%emt 0:00:12]} 14. Nf3 {[%emt 0:00:26]} Ne4 {[%emt 0:01:12]} 15. Ng5 {[%emt 0:03:02]} h6 {[%emt 0:03:03]} 16. Qh5 {[%emt 0:02:44]} Qe8 {[%emt 0:00:46]} 17. Qxe8 {[%emt 0:00:03]} Rxe8 {[%emt 0:00:01]} 18. Nxe4 {[%emt 0:00:24]} dxe4 {[%emt 0:00:16]} 19. O-O-O {[%emt 0:01:34]} Be6 {[%emt 0:00:08]} 20. Rdg1 {[%emt 0:00:54]} Kf8 {[%emt 0:01:09]} 21. Rg6 {[%emt 0:00:22]} Bf7 {[%emt 0:00:36]} 22. Rg2 {[%emt 0:00:08]} Red8 {[%emt 0:01:50]} 23. Rhg1 {[%emt 0:00:24]} Bxh4 {[%emt 0:00:25]} 24. Rxg7 {[%emt 0:00:08]} Bxf2 {[%emt 0:01:10]} 25. R1g2 {[%emt 0:00:01]} Be1 {[%emt 0:01:40]} 26. Bxh6 {[%emt 0:00:14]} Rdc8 {[%emt 0:01:41]} 27. e6 {[%emt 0:00:14]} Bxe6 {[%emt 0:00:22]} 28. Rxb7+ {[%emt 0:00:07]} Ke8 {[%emt 0:00:12]} 29. Ba4+ {[%emt 0:00:01]} 1-0

[Event "HUN-ch Rapid 2018"]
[Site "Ajka"]
[Date "2018.07.20"]
[Round "3"]
[White "Kormos, Adam"]
[Black "Cs. Kovacs, Laszlo"]
[Result "0-1"]
[ECO "B06"]
[WhiteElo "2286"]
[BlackElo "1928"]
[Annotator "NA"]
[PlyCount "70"]
[EventDate "2018.07.20"]
[EventType "swiss"]
[EventCountry "HUN"]
[SourceTitle "playchess.com"]
[Source "ChessBase"]
[SourceQuality "1"]
[TimeControl "1200+5"]

1. e4 {[%emt 0:00:03]} g6 {[%emt 0:00:03]} 2. d4 {[%emt 0:00:03]} Bg7 {[%emt 0:00:01]} 3. Nc3 {[%emt 0:00:09]} d6 {[%emt 0:00:02]} 4. Bg5 {[%emt 0:00:02]} Nf6 {[%emt 0:00:04]} 5. e5 {[%emt 0:00:01]} dxe5 {[%emt 0:00:02]} 6. dxe5 {[%emt 0:00:01]} Qxd1+ {[%emt 0:00:03]} 7. Rxd1 {[%emt 0:00:03]} Nfd7 {[%emt 0:00:10]} 8. Nd5 {[%emt 0:00:11]} O-O {[%emt 0:00:30]} 9. Nxc7 {[%emt 0:00:06]} Bxe5 {[%emt 0:00:14]} 10. Nxa8 {[%emt 0:00:06]} f6 {[%emt 0:00:02]} 11. Bc1 {[%emt 0:00:15]} b6 {[%emt 0:00:02]} 12. Nf3 {[%emt 0:00:08]} Bd6 {[%emt 0:00:04]} 13. Bc4+ {[%emt 0:00:10]} Kg7 {[%emt 0:00:10]} 14. Bd5 {[%emt 0:00:41]} Nc5 {[%emt 0:00:25]} 15. O-O {[%emt 0:00:28]} Nba6 {[%emt 0:00:06]} 16. c3 {[%emt 0:00:46]} Bb7 {[%emt 0:00:03]} 17. Bxb7 {[%emt 0:00:55]} Nxb7 {[%emt 0:00:02]} 18. Nxb6 {[%emt 0:00:26]} axb6 {[%emt 0:00:02]} 19. b4 {[%emt 0:00:06]} Rc8 {[%emt 0:00:17]} 20. Rd3 {[%emt 0:00:03]} Nc7 {[%emt 0:00:22]} 21. Be3 {[%emt 0:00:07]} b5 {[%emt 0:00:10]} 22. Nd4 {[%emt 0:00:09]} Nd8 {[%emt 0:00:14]} 23. Nb3 {[%emt 0:00:06]} Nc6 {[%emt 0:00:12]} 24. f4 {[%emt 0:00:16]} Ne6 {[%emt 0:00:45]} 25. g3 {[%emt 0:00:15]} Kf7 {[%emt 0:00:03]} 26. Re1 {[%emt 0:00:15]} f5 {[%emt 0:00:13]} 27. Re2 {[%emt 0:00:50]} h5 {[%emt 0:01:03]} 28. Kg2 {[%emt 0:00:02]} Ra8 {[%emt 0:00:14]} 29. Nd4 {[%emt 0:00:05]} Ncxd4 {[%emt 0:00:10]} 30. Bxd4 {[%emt 0:00:02]} Ra3 {[%emt 0:00:16]} 31. Be5 {[%emt 0:00:23]} Bxe5 {[%emt 0:00:06]} 32. Rxe5 {[%emt 0:00:06]} Rxa2+ {[%emt 0:00:03]} 33. Kh3 {[%emt 0:00:09]} g5 {[%emt 0:00:18]} 34. Rxf5+ {[%emt 0:00:46]} Kg6 {[%emt 0:00:01]} 35. Re5 {[%emt 0:00:05]} g4+ {[%emt 0:00:03]} 0-1

[Event "HUN-ch Rapid 2018"]
[Site "Ajka"]
[Date "2018.07.20"]
[Round "3"]
[White "Laszlo, Janos"]
[Black "Mihok, Oliver"]
[Result "1/2-1/2"]
[ECO "A04"]
[WhiteElo "2273"]
[BlackElo "2426"]
[Annotator "RC"]
[PlyCount "112"]
[EventDate "2018.07.20"]
[EventType "swiss"]
[EventCountry "HUN"]
[SourceTitle "playchess.com"]
[Source "ChessBase"]
[SourceQuality "1"]
[TimeControl "1200+5"]

1. Nf3 {[%emt 0:00:04]} c5 {[%emt 0:00:08]} 2. e3 {[%emt 0:00:03]} Nf6 {[%emt 0:00:23]} 3. c4 {[%emt 0:00:04]} g6 {[%emt 0:00:18]} 4. Nc3 {[%emt 0:00:03]} Bg7 {[%emt 0:00:04]} 5. d4 {[%emt 0:00:02]} cxd4 {[%emt 0:00:10]} 6. exd4 {[%emt 0:00:02]} d5 {[%emt 0:00:11]} 7. h3 {[%emt 0:00:08]} O-O {[%emt 0:00:10]} 8. Bd3 {[%emt 0:00:02]} Nc6 {[%emt 0:00:07]} 9. O-O {[%emt 0:00:04]} dxc4 {[%emt 0:00:02]} 10. Bxc4 {[%emt 0:00:02]} Na5 {[%emt 0:00:01]} 11. Bd3 {[%emt 0:00:04]} b6 {[%emt 0:00:21]} 12. Re1 {[%emt 0:00:29]} Bb7 {[%emt 0:00:02]} 13. Bg5 {[%emt 0:01:34]} h6 {[%emt 0:00:09]} 14. Bf4 {[%emt 0:00:05]} Nc6 {[%emt 0:00:25]} 15. Bf1 {[%emt 0:00:54]} Nd5 {[%emt 0:00:39]} 16. Be5 {[%emt 0:01:24]} Nxe5 {[%emt 0:00:16]} 17. Nxe5 {[%emt 0:00:06]} Rc8 {[%emt 0:00:40]} 18. Qb3 {[%emt 0:00:42]} e6 {[%emt 0:00:35]} 19. Rac1 {[%emt 0:01:47]} Qg5 {[%emt 0:00:37]} 20. Rcd1 {[%emt 0:00:39]} Rfd8 {[%emt 0:02:32]} 21. g3 {[%emt 0:01:26]} Qe7 {[%emt 0:00:54]} 22. a3 {[%emt 0:00:12]} h5 {[%emt 0:00:46]} 23. h4 {[%emt 0:01:29]} Nxc3 {[%emt 0:00:44]} 24. bxc3 {[%emt 0:00:06]} Qc7 {[%emt 0:00:02]} 25. Rd3 {[%emt 0:02:51]} Bxe5 {[%emt 0:02:05]} 26. Rxe5 {[%emt 0:00:27]} Ba6 {[%emt 0:00:24]} 27. Rde3 {[%emt 0:00:31]} Bxf1 {[%emt 0:00:02]} 28. Kxf1 {[%emt 0:00:03]} Qc4+ {[%emt 0:00:04]} 29. Qxc4 {[%emt 0:00:04]} Rxc4 {[%emt 0:00:01]} 30. Rb5 {[%emt 0:01:18]} Kg7 {[%emt 0:01:27]} 31. Ke2 {[%emt 0:00:16]} Ra4 {[%emt 0:01:38]} 32. Rb3 {[%emt 0:00:05]} Rd5 {[%emt 0:00:23]} 33. Kd3 {[%emt 0:03:17]} Rda5 {[%emt 0:00:02]} 34. Re5 {[%emt 0:00:23]} Rxa3 {[%emt 0:00:09]} 35. Rxa5 {[%emt 0:00:09]} Rxa5 {[%emt 0:00:02]} 36. c4 {[%emt 0:00:12]} Kf6 {[%emt 0:00:13]} 37. Ke4 {[%emt 0:00:13]} Ra4 {[%emt 0:00:51]} 38. Rc3 {[%emt 0:00:06]} Ke7 {[%emt 0:00:35]} 39. f3 {[%emt 0:00:07]} Kd6 {[%emt 0:00:11]} 40. g4 {[%emt 0:00:15]} Ra1 {[%emt 0:00:25]} 41. gxh5 {[%emt 0:00:08]} gxh5 {[%emt 0:00:04]} 42. c5+ {[%emt 0:00:18]} bxc5 {[%emt 0:00:12]} 43. Rxc5 {[%emt 0:00:07]} f5+ {[%emt 0:00:10]} 44. Kf4 {[%emt 0:00:07]} Rg1 {[%emt 0:00:51]} 45. Ra5 {[%emt 0:00:06]} Rg7 {[%emt 0:00:02]} 46. Rb5 {[%emt 0:00:22]} Kc6 {[%emt 0:00:19]} 47. Re5 {[%emt 0:00:05]} Rg6 {[%emt 0:00:08]} 48. d5+ {[%emt 0:00:24]} exd5 {[%emt 0:00:04]} 49. Rxf5 {[%emt 0:00:04]} d4 {[%emt 0:00:15]} 50. Ke4 {[%emt 0:00:07]} Rd6 {[%emt 0:00:01]} 51. Kd3 {[%emt 0:00:04]} Rd5 {[%emt 0:00:01]} 52. Rf8 {[%emt 0:00:06]} a5 {[%emt 0:00:07]} 53. f4 {[%emt 0:00:02]} Kd7 {[%emt 0:00:21]} 54. Ke4 {[%emt 0:00:10]} d3 {[%emt 0:00:14]} 55. Kxd5 {[%emt 0:00:21]} d2 {[%emt 0:00:01]} 56. Rf7+ {[%emt 0:00:01]} Ke8 {[%emt 0:00:08]} 1/2-1/2

[Event "HUN-ch Rapid 2018"]
[Site "Ajka"]
[Date "2018.07.20"]
[Round "3"]
[White "Pais, Nimrod"]
[Black "Gledura, Benjamin"]
[Result "0-1"]
[ECO "A45"]
[WhiteElo "1962"]
[BlackElo "2574"]
[Annotator "ChessBase"]
[PlyCount "55"]
[EventDate "2018.07.20"]
[EventType "swiss"]
[EventCountry "HUN"]
[SourceTitle "playchess.com"]
[Source "ChessBase"]
[SourceQuality "1"]
[TimeControl "1200+5"]

1. d4 {[%emt 0:00:02]} Nf6 {[%emt 0:00:02]} 2. e3 {[%emt 0:00:04]} c5 {[%emt 0:00:05]} 3. Nd2 {[%emt 0:00:04]} d5 {[%emt 0:00:08]} 4. c3 {[%emt 0:00:05]} Nc6 {[%emt 0:00:05]} 5. Bd3 {[%emt 0:00:02]} e5 {[%emt 0:00:03]} 6. dxc5 {[%emt 0:00:26]} Bxc5 {[%emt 0:00:02]} 7. h3 {[%emt 0:00:27]} O-O {[%emt 0:00:05]} 8. Nb3 {[%emt 0:00:29]} Bd6 {[%emt 0:00:03]} 9. Ne2 {[%emt 0:00:32]} Be6 {[%emt 0:00:06]} 10. Bc2 {[%emt 0:00:23]} Qd7 {[%emt 0:00:03]} 11. Ng3 {[%emt 0:00:41]} e4 {[%emt 0:00:04]} 12. Ne2 {[%emt 0:00:04]} Ne5 {[%emt 0:00:21]} 13. Nbd4 {[%emt 0:00:14]} Rac8 {[%emt 0:00:05]} 14. Nf4 {[%emt 0:00:27]} Nc4 {[%emt 0:00:03]} 15. Qe2 {[%emt 0:00:32]} b5 {[%emt 0:00:18]} 16. b3 {[%emt 0:00:44]} Na3 {[%emt 0:00:22]} 17. Bxa3 {[%emt 0:00:18]} Bxa3 {[%emt 0:00:02]} 18. Nxb5 {[%emt 0:00:50]} Bb2 {[%emt 0:00:04]} 19. Rb1 {[%emt 0:00:01]} Bxc3+ {[%emt 0:00:03]} 20. Nxc3 {[%emt 0:00:03]} Rxc3 {[%emt 0:00:01]} 21. Qd2 {[%emt 0:00:44]} Rfc8 {[%emt 0:00:03]} 22. Bd1 {[%emt 0:00:42]} Qb5 {[%emt 0:00:04]} 23. Ne2 {[%emt 0:01:22]} Rd3 {[%emt 0:00:04]} 24. Qb2 {[%emt 0:00:35]} Qb4+ {[%emt 0:00:06]} 25. Kf1 {[%emt 0:00:04]} Rd2 {[%emt 0:00:05]} 26. Qa1 {[%emt 0:00:19]} Qa3 {[%emt 0:00:12]} 27. Nd4 {[%emt 0:00:23]} Rxa2 {[%emt 0:00:10]} 28. Ne2 0-1

[Event "HUN-ch Rapid 2018"]
[Site "Ajka"]
[Date "2018.07.20"]
[Round "4"]
[White "Horvath, Adam"]
[Black "Banusz, Tamas"]
[Result "1/2-1/2"]
[ECO "B31"]
[WhiteElo "2479"]
[BlackElo "2592"]
[Annotator "ChessBase"]
[PlyCount "217"]
[EventDate "2018.07.20"]
[EventType "swiss"]
[EventCountry "HUN"]
[SourceTitle "playchess.com"]
[Source "ChessBase"]
[SourceQuality "1"]
[TimeControl "1200+5"]

1. e4 {[%emt 0:00:02]} c5 {[%emt 0:00:14]} 2. Nf3 {[%emt 0:00:02]} Nc6 {[%emt 0:00:01]} 3. Bb5 {[%emt 0:00:20]} g6 {[%emt 0:00:02]} 4. O-O {[%emt 0:00:01]} Bg7 {[%emt 0:00:01]} 5. c3 {[%emt 0:00:26]} Nf6 {[%emt 0:00:05]} 6. Re1 {[%emt 0:00:03]} O-O {[%emt 0:00:04]} 7. h3 {[%emt 0:00:07]} Qb6 {[%emt 0:01:18]} 8. Bf1 {[%emt 0:00:02]} Rd8 {[%emt 0:00:24]} 9. Na3 {[%emt 0:00:54]} d5 {[%emt 0:00:24]} 10. e5 {[%emt 0:01:06]} Ne8 {[%emt 0:00:01]} 11. d3 {[%emt 0:01:58]} Nc7 {[%emt 0:02:57]} 12. Rb1 {[%emt 0:00:21]} Ne6 {[%emt 0:00:14]} 13. Nc2 {[%emt 0:00:24]} a5 {[%emt 0:00:39]} 14. g3 {[%emt 0:01:08]} d4 {[%emt 0:00:54]} 15. c4 {[%emt 0:00:01]} Qc7 {[%emt 0:00:00]} 16. Qe2 {[%emt 0:00:32]} Nb4 {[%emt 0:00:16]} 17. a3 {[%emt 0:02:07]} Nxc2 {[%emt 0:00:03]} 18. Qxc2 {[%emt 0:00:01]} a4 {[%emt 0:00:00]} 19. Bg2 {[%emt 0:00:30]} Bd7 {[%emt 0:00:25]} 20. Qe2 {[%emt 0:02:48]} Rab8 {[%emt 0:01:42]} 21. h4 {[%emt 0:00:43]} b5 {[%emt 0:00:23]} 22. cxb5 {[%emt 0:00:09]} Bxb5 {[%emt 0:00:13]} 23. Nd2 {[%emt 0:00:10]} Rbc8 {[%emt 0:01:06]} 24. b3 {[%emt 0:00:22]} axb3 {[%emt 0:00:07]} 25. Rxb3 {[%emt 0:00:02]} Qa5 {[%emt 0:00:12]} 26. Rb1 {[%emt 0:01:41]} Ba6 {[%emt 0:00:37]} 27. Bb7 {[%emt 0:03:02]} Rb8 {[%emt 0:01:56]} 28. Bxa6 {[%emt 0:00:21]} Qxa6 {[%emt 0:00:27]} 29. Rxb8 {[%emt 0:00:09]} Rxb8 {[%emt 0:00:01]} 30. Nc4 {[%emt 0:00:06]} Nc7 {[%emt 0:03:30]} 31. Bd2 {[%emt 0:02:21]} Nd5 {[%emt 0:00:06]} 32. Qf3 {[%emt 0:00:04]} Nc7 {[%emt 0:02:40]} 33. Rc1 {[%emt 0:00:10]} h5 {[%emt 0:00:23]} 34. Bg5 {[%emt 0:00:14]} Bf8 {[%emt 0:00:51]} 35. Qd1 {[%emt 0:00:10]} Nd5 {[%emt 0:00:05]} 36. Qf3 {[%emt 0:00:06]} e6 {[%emt 0:00:06]} 37. Kg2 {[%emt 0:00:10]} Rb3 {[%emt 0:00:02]} 38. Bd2 {[%emt 0:00:05]} Qa4 {[%emt 0:00:26]} 39. Qd1 {[%emt 0:00:06]} Qb5 {[%emt 0:00:03]} 40. Bg5 {[%emt 0:00:05]} Nc3 {[%emt 0:00:12]} 41. Qf3 {[%emt 0:00:01]} Nd5 {[%emt 0:00:03]} 42. Qd1 {[%emt 0:00:02]} Qb7 {[%emt 0:00:04]} 43. Kh2 {[%emt 0:00:05]} Nc3 {[%emt 0:00:02]} 44. Qh1 {[%emt 0:00:02]} Qa6 {[%emt 0:00:08]} 45. Qf3 {[%emt 0:00:03]} Na2 {[%emt 0:00:08]} 46. Rc2 {[%emt 0:00:13]} Nc3 {[%emt 0:00:06]} 47. Rc1 Nd5 {[%emt 0:00:05]} 48. Kg2 {[%emt 0:00:07]} Nc3 {[%emt 0:00:02]} 49. Re1 {[%emt 0:00:11]} Nb5 {[%emt 0:00:02]} 50. Nd2 {[%emt 0:00:07]} Rxa3 {[%emt 0:00:03]} 51. Ne4 {[%emt 0:00:01]} Qa8 {[%emt 0:00:08]} 52. Bc1 {[%emt 0:00:07]} Ra1 {[%emt 0:00:04]} 53. Bb2 {[%emt 0:00:06]} Ra2 {[%emt 0:00:01]} 54. Rb1 {[%emt 0:00:02]} Bg7 {[%emt 0:00:10]} 55. Bc1 {[%emt 0:00:02]} Nc3 {[%emt 0:00:03]} 56. Rb7 {[%emt 0:00:06]} Qxb7 {[%emt 0:00:14]} 57. Nf6+ {[%emt 0:00:01]} Bxf6 {[%emt 0:00:01]} 58. Qxb7 {[%emt 0:00:00]} Bxe5 {[%emt 0:00:01]} 59. Qc8+ {[%emt 0:00:09]} Kg7 {[%emt 0:00:02]} 60. Qxc5 {[%emt 0:00:01]} Nd5 {[%emt 0:00:04]} 61. Bg5 {[%emt 0:00:09]} Rb2 {[%emt 0:00:12]} 62. Qc1 {[%emt 0:00:03]} Rb3 {[%emt 0:00:03]} 63. Qe1 {[%emt 0:00:10]} Bf6 {[%emt 0:00:11]} 64. Qe4 {[%emt 0:00:04]} Rb4 {[%emt 0:00:02]} 65. Bxf6+ {[%emt 0:00:14]} Kxf6 {[%emt 0:00:02]} 66. g4 {[%emt 0:00:03]} hxg4 {[%emt 0:00:08]} 67. Qxg4 {[%emt 0:00:01]} Ke7 {[%emt 0:00:03]} 68. Qg5+ {[%emt 0:00:04]} Kd7 {[%emt 0:00:02]} 69. Qg4 {[%emt 0:00:10]} Kd6 {[%emt 0:00:09]} 70. Kg3 {[%emt 0:00:07]} e5 {[%emt 0:00:02]} 71. Qc8 {[%emt 0:00:05]} Rb3 {[%emt 0:00:04]} 72. Qd8+ {[%emt 0:00:04]} Ke6 {[%emt 0:00:02]} 73. Qc8+ {[%emt 0:00:01]} Kd6 {[%emt 0:00:13]} 74. f3 {[%emt 0:00:08]} Nf4 {[%emt 0:00:06]} 75. Qd8+ {[%emt 0:00:07]} Ke6 {[%emt 0:00:02]} 76. Qe8+ {[%emt 0:00:04]} Kf6 {[%emt 0:00:02]} 77. Qh8+ {[%emt 0:00:01]} Kf5 {[%emt 0:00:01]} 78. Qg8 {[%emt 0:00:01]} Nh5+ {[%emt 0:00:15]} 79. Kh3 {[%emt 0:00:03]} Nf4+ {[%emt 0:00:02]} 80. Kg3 {[%emt 0:00:00]} Kf6 {[%emt 0:00:04]} 81. Qh8+ {[%emt 0:00:02]} Ke6 {[%emt 0:00:03]} 82. Qe8+ {[%emt 0:00:06]} Kf6 {[%emt 0:00:02]} 83. Qh8+ {[%emt 0:00:02]} Kf5 {[%emt 0:00:08]} 84. Qc8+ {[%emt 0:00:07]} Ne6 {[%emt 0:00:08]} 85. Qg8 {[%emt 0:00:19]} f6 {[%emt 0:00:09]} 86. h5 {[%emt 0:00:04]} gxh5 {[%emt 0:00:07]} 87. Qh7+ {[%emt 0:00:05]} Kg5 {[%emt 0:00:01]} 88. Qf7 {[%emt 0:00:13]} Rb6 {[%emt 0:00:04]} 89. Qg8+ {[%emt 0:00:03]} Kh6 {[%emt 0:00:04]} 90. Kh4 {[%emt 0:00:05]} Nf4 {[%emt 0:00:04]} 91. Qh8+ {[%emt 0:00:04]} Kg6 {[%emt 0:00:00]} 92. Qg8+ {[%emt 0:00:01]} Kf5 {[%emt 0:00:10]} 93. Qc8+ {[%emt 0:00:01]} Ne6 {[%emt 0:00:06]} 94. Qa8 {[%emt 0:00:08]} Ng5 {[%emt 0:00:11]} 95. Qc8+ {[%emt 0:00:05]} Kf4 {[%emt 0:00:02]} 96. Kxh5 {[%emt 0:00:10]} Ke3 {[%emt 0:00:04]} 97. Qd8 {[%emt 0:00:08]} Re6 98. Kg4 {[%emt 0:00:05]} Kxd3 {[%emt 0:00:05]} 99. Qc8 {[%emt 0:00:01]} Ke3 {[%emt 0:00:05]} 100. Qc1+ {[%emt 0:00:01]} Kd3 {[%emt 0:00:09]} 101. Qd1+ {[%emt 0:00:03]} Kc3 {[%emt 0:00:03]} 102. Qc1+ {[%emt 0:00:02]} Kb4 {[%emt 0:00:01]} 103. Qb2+ {[%emt 0:00:01]} Kc5 {[%emt 0:00:01]} 104. Qa3+ {[%emt 0:00:01]} Kd5 {[%emt 0:00:03]} 105. Qb3+ {[%emt 0:00:01]} Kd6 {[%emt 0:00:01]} 106. Qb6+ {[%emt 0:00:02]} Kd5 {[%emt 0:00:18]} 107. Qb5+ {[%emt 0:00:02]} Kd6 {[%emt 0:00:02]} 108. Qb6+ {[%emt 0:00:01]} Kd5 {[%emt 0:00:12]} 109. Qb5+ {[%emt 0:00:01]} 1/2-1/2